lending/lending_fUSD_20250819
["ID","MTS","AMOUNT","RATE_DAILY","PERIOD"]
[380258799,1755629365780,-683.04,0.00024095,30]
[380258800,1755629365820,-423.14,0.00024095,30]
[380258801,1755629365859,-400.0,0.00024095,30]
[380258802,1755629365899,-400.0,0.00024095,30]
[380258803,1755629366190,-1124.55,0.00024095,30]
[380258804,1755629366235,-400.0,0.00024095,30]
[380258805,1755629366280,-999.1,0.00024095,30]
[380258806,1755629366321,-605.9,0.00024095,30]
[380258807,1755629366362,-2153.28,0.00024095,30]
[380258808,1755629366404,-400.0,0.00024095,30]
[380258809,1755629366444,-400.0,0.00024095,30]
[380258810,1755629366484,-1616.79,0.00024095,30]
[380258811,1755629366526,-686.44,0.00024095,30]
[380258812,1755629366567,-400.0,0.00024095,30]
[380258813,1755629366619,-343.08047235,0.00024095,30]
[380258814,1755629366665,-1588.45,0.00024095,30]
[380258815,1755629366708,-400.0,0.00024095,30]
[380258816,1755629366751,-1050.38,0.00024095,30]
[380258817,1755629366792,-400.0,0.00024095,30]
[380258818,1755629366836,-1985.28,0.00024095,30]
[380258819,1755629366876,-571.11,0.00024095,30]
[380258820,1755629366916,-466.93,0.00024095,30]
[380258821,1755629366956,-400.0,0.00024095,30]
[380258822,1755629366996,-1068.6,0.00024095,30]
[380258823,1755629367048,-312.75331741,0.00024095,30]
[380258824,1755629367095,-400.0,0.00024095,30]
[380258825,1755629367137,-400.0,0.00024095,30]
[380258826,1755629367182,-811.68,0.00024095,30]
[380258827,1755629367229,-400.0,0.00024095,30]
[380258828,1755629367274,-2809.03,0.00024095,30]
[380258829,1755629367318,-400.0,0.00024095,30]
[380258830,1755629367362,-2228.54,0.00024095,30]
[380258831,1755629367407,-813.56,0.00024095,30]
[380258832,1755629367451,-3003.62,0.00024095,30]
[380258833,1755629367494,-2624.47,0.00024095,30]
[380258834,1755629367536,-400.0,0.00024095,30]
[380258835,1755629367579,-400.0,0.00024095,30]
[380258836,1755629367625,-1189.99,0.00024095,30]
[380258837,1755629367669,-400.0,0.00024095,30]
[380258838,1755629367714,-400.0,0.00024095,30]
[380258839,1755629367757,-599.25,0.00024095,30]
[380258840,1755629367801,-1362.73,0.00024095,30]
[380258841,1755629367849,-3776.88,0.00024095,30]
[380258842,1755629367895,-1736.1,0.00024095,30]
[380258843,1755629367945,-1120.55,0.00024095,30]
[380258844,1755629367991,-400.0,0.00024095,30]
[380258845,1755629368037,-409.37,0.00024095,30]
[380258846,1755629368082,-750.01,0.00024095,30]
[380258847,1755629368126,-992.99,0.00024095,30]
[380258848,1755629368170,-1589.16,0.00024095,30]
[380258849,1755629368214,-400.0,0.00024095,30]
[380258850,1755629368265,-629.5,0.00024095,30]
[380258851,1755629368313,-3568.81,0.00024095,30]
[380258852,1755629368358,-400.0,0.00024095,30]
[380258853,1755629368403,-400.0,0.00024095,30]
[380258854,1755629368446,-400.0,0.00024095,30]
[380258855,1755629368489,-1108.24,0.00024095,30]
[380258856,1755629368531,-447.08,0.00024095,30]
[380258857,1755629368571,-407.77,0.00024095,30]
[380258858,1755629368613,-400.0,0.00024095,30]
[380258859,1755629368653,-400.0,0.00024095,30]
[380258860,1755629368695,-1957.9,0.00024095,30]
[380258861,1755629368736,-2055.74,0.00024095,30]
[380258862,1755629368777,-2231.5,0.00024095,30]
[380258863,1755629368818,-400.0,0.00024095,30]
[380258864,1755629368864,-400.0,0.00024095,30]
[380258865,1755629368906,-400.0,0.00024095,30]
[380258866,1755629368947,-400.0,0.00024095,30]
[380258867,1755629368987,-400.0,0.00024095,30]
[380258868,1755629369031,-2119.56,0.00024095,30]
[380258869,1755629369074,-827.21,0.00024095,30]
[380258870,1755629369122,-698.76,0.00024095,30]
[380258871,1755629369167,-585.57,0.00024095,30]
[380258872,1755629369212,-400.0,0.00024095,30]
[380258873,1755629369263,-400.0,0.00024095,30]
[380258874,1755629369311,-1129.01,0.00024095,30]
[380258875,1755629369356,-1874.82,0.00024095,30]
[380258876,1755629369403,-629.33,0.00024095,30]
[380258877,1755629369447,-400.0,0.00024095,30]
[380258878,1755629369491,-2404.39,0.00024095,30]
[380258879,1755629369535,-400.0,0.00024095,30]
[380258880,1755629369577,-1917.36,0.00024095,30]
[380258881,1755629369623,-400.0,0.00024095,30]
[380258882,1755629369669,-2366.75,0.00024095,30]
[380258883,1755629369714,-400.0,0.00024095,30]
[380258884,1755629369761,-400.0,0.00024095,30]
[380258885,1755629369806,-1426.86,0.00024095,30]
[380258886,1755629369853,-400.0,0.00024095,30]
[380258887,1755629369897,-400.0,0.00024095,30]
[380258888,1755629369938,-1562.6,0.00024095,30]
[380258889,1755629369981,-3071.04,0.00024095,30]
[380258890,1755629370024,-953.9,0.00024095,30]
[380258891,1755629370067,-663.54,0.00024095,30]
[380258892,1755629370108,-1455.03,0.00024095,30]
[380258893,1755629370153,-2493.28,0.00024095,30]
[380258894,1755629370198,-1582.29,0.00024095,30]
[380258895,1755629370245,-2717.22,0.00024095,30]
[380258896,1755629370296,-1378.54,0.00024095,30]
[380258897,1755629370343,-1537.49,0.00024095,30]
[380258898,1755629370394,-1288.09,0.00024095,30]
[380258899,1755629370436,-905.04,0.00024095,30]
[380258900,1755629370479,-400.0,0.00024095,30]
[380258901,1755629370532,-1089.65,0.00024095,30]
[380258902,1755629370576,-400.0,0.00024095,30]
[380258903,1755629370616,-2269.41,0.00024095,30]
[380258904,1755629370656,-960.39,0.00024095,30]
[380258905,1755629370696,-1925.93,0.00024095,30]
[380258906,1755629370735,-400.0,0.00024095,30]
[380258907,1755629370774,-1379.79,0.00024095,30]
[380258908,1755629370815,-1502.07,0.00024095,30]
[380258909,1755629370854,-2631.1,0.00024095,30]
[380258910,1755629370892,-1644.06,0.00024095,30]
[380258911,1755629370933,-1248.22,0.00024095,30]
[380258912,1755629370975,-3136.86,0.00024095,30]
[380258913,1755629371017,-400.0,0.00024095,30]
[380258914,1755629371062,-400.0,0.00024095,30]
[380258915,1755629371106,-1011.83,0.00024095,30]
[380258916,1755629371153,-2888.33,0.00024095,30]
[380258917,1755629371199,-725.39,0.00024095,30]
[380258918,1755629371242,-2245.53,0.00024095,30]
[380258919,1755629371285,-1602.46,0.00024095,30]
[380258920,1755629371626,-400.0,0.00024095,30]
[380258921,1755629371669,-400.0,0.00024095,30]
[380258922,1755629371711,-668.52,0.00024095,30]
[380258923,1755629371763,-400.0,0.00024095,30]
[380258924,1755629371805,-507.13,0.00024095,30]
[380258925,1755629371846,-400.0,0.00024095,30]
[380258926,1755629371890,-1967.75,0.00024095,30]
[380258927,1755629371929,-760.12,0.00024095,30]
[380258928,1755629371967,-487.4,0.00024095,30]
[380258929,1755629372007,-841.58,0.00024095,30]
[380258930,1755629372048,-799.86,0.00024095,30]
[380258931,1755629372091,-400.0,0.00024095,30]
[380258932,1755629372134,-1041.8,0.00024095,30]
[380258933,1755629372185,-483.27,0.00024095,30]
[380258934,1755629372230,-1087.92,0.00024095,30]
[380258935,1755629372272,-508.07,0.00024095,30]
[380258936,1755629372314,-400.0,0.00024095,30]
[380258937,1755629372358,-400.0,0.00024095,30]
[380258938,1755629372401,-1483.63,0.00024095,30]
[380258939,1755629372442,-726.4,0.00024095,30]
[380258940,1755629372482,-959.25,0.00024095,30]
[380258941,1755629372521,-1063.98,0.00024095,30]
[380258942,1755629372560,-3254.87,0.00024095,30]
[380258943,1755629372608,-400.0,0.00024095,30]
[380258944,1755629372648,-817.23,0.00024095,30]
[380258945,1755629372689,-2817.12,0.00024095,30]
[380258946,1755629372729,-400.0,0.00024095,30]
[380258947,1755629372770,-2745.7,0.00024095,30]
[380258948,1755629372810,-497.4,0.00024095,30]
[380258949,1755629372853,-400.0,0.00024095,30]
[380258950,1755629372897,-2692.75,0.00024095,30]
[380258951,1755629372943,-400.0,0.00024095,30]
[380258952,1755629372984,-845.17,0.00024095,30]
[380258953,1755629373027,-400.0,0.00024095,30]
[380258954,1755629373074,-815.15,0.00024095,30]
[380258955,1755629373121,-682.32,0.00024095,30]
[380258956,1755629373166,-1020.1,0.00024095,30]
[380258957,1755629373211,-400.0,0.00024095,30]
[380258958,1755629373256,-2374.4,0.00024095,30]
[380258959,1755629373302,-475.85,0.00024095,30]
[380258960,1755629373355,-400.0,0.00024095,30]
[380258961,1755629373401,-1193.47,0.00024095,30]
[380258962,1755629373449,-618.54,0.00024095,30]
[380258963,1755629373494,-1246.9,0.00024095,30]
[380258964,1755629373537,-2008.99,0.00024095,30]
[380258965,1755629373582,-404.08,0.00024095,30]
[380258966,1755629373632,-400.0,0.00024095,30]
[380258967,1755629373677,-455.76,0.00024095,30]
[380258968,1755629373722,-2235.77,0.00024095,30]
[380258969,1755629373767,-1258.44,0.00024095,30]
[380258970,1755629373812,-518.8,0.00024095,30]
[380258971,1755629373857,-1668.91,0.00024095,30]
[380258972,1755629373901,-2375.7,0.00024095,30]
[380258973,1755629373944,-1530.33,0.00024095,30]
[380258974,1755629373986,-400.0,0.00024095,30]
[380258975,1755629374029,-1449.9,0.00024095,30]
[380258976,1755629374072,-1806.06,0.00024095,30]
[380258977,1755629374116,-400.0,0.00024095,30]
[380258978,1755629374161,-400.0,0.00024095,30]
[380258979,1755629374211,-2506.8,0.00024095,30]
[380258980,1755629374267,-479.42,0.00024095,30]
[380258981,1755629374315,-1626.69,0.00024095,30]
[380258982,1755629374360,-1122.01,0.00024095,30]
[380258983,1755629374405,-400.0,0.00024095,30]
[380258984,1755629374454,-508.45,0.00024095,30]
[380258985,1755629374503,-400.0,0.00024095,30]
[380258986,1755629374551,-400.0,0.00024095,30]
[380258987,1755629374601,-3447.3,0.00024095,30]
[380258988,1755629374646,-747.04,0.00024095,30]
[380258989,1755629374694,-3215.58,0.00024095,30]
[380258990,1755629374741,-1152.46,0.00024095,30]
[380258991,1755629374785,-688.78,0.00024095,30]
[380258992,1755629374831,-468.02,0.00024095,30]
[380258993,1755629374878,-4696.98,0.00024095,30]
[380258994,1755629374923,-1375.95,0.00024095,30]
[380258995,1755629374968,-400.0,0.00024095,30]
[380258996,1755629375010,-2565.54,0.00024095,30]
[380258997,1755629375054,-400.0,0.00024095,30]
[380258998,1755629375101,-854.41,0.00024095,30]
[380258999,1755629375145,-1269.08,0.00024095,30]
[380259000,1755629375190,-3001.66,0.00024095,30]
[380259001,1755629375237,-422.22,0.00024095,30]
[380259002,1755629375283,-912.65,0.00024095,30]
[380259003,1755629375325,-735.52,0.00024095,30]
[380259004,1755629375366,-400.0,0.00024095,30]
[380259005,1755629375408,-457.56,0.00024095,30]
[380259006,1755629375450,-415.51,0.00024095,30]
[380259007,1755629375490,-2771.67,0.00024095,30]
[380259008,1755629375529,-3789.17,0.00024095,30]
[380259009,1755629375572,-1065.52,0.00024095,30]
[380259010,1755629375612,-400.0,0.00024095,30]
[380259011,1755629375651,-770.1,0.00024095,30]
[380259012,1755629375691,-400.0,0.00024095,30]
[380259013,1755629376290,-400.0,0.00024095,30]
[380259014,1755629376339,-400.0,0.00024095,30]
[380259015,1755629376380,-1299.07,0.00024095,30]
[380259016,1755629376421,-771.06,0.00024095,30]
[380259017,1755629376461,-624.09,0.00024095,30]
[380259018,1755629376500,-356.86973035,0.00024095,30]
[380259019,1755629376540,-1171.27,0.00024095,30]
[380259020,1755629376579,-1755.44,0.00024095,30]
[380259021,1755629376619,-400.0,0.00024095,30]
[380259022,1755629376658,-557.86,0.00024095,30]
[380259023,1755629376699,-243.34334847,0.00024095,30]
[380259024,1755629376743,-963.44,0.00024095,30]
[380259025,1755629376783,-1079.68,0.00024095,30]
[380259026,1755629376823,-905.05,0.00024095,30]
[380259027,1755629376862,-400.0,0.00024095,30]
[380259028,1755629376901,-400.0,0.00024095,30]
[380259029,1755629376938,-571.33,0.00024095,30]
[380259030,1755629376976,-992.04,0.00024095,30]
[380259031,1755629377013,-1377.29,0.00024095,30]
[380259032,1755629377056,-4098.05,0.00024095,30]
[380259033,1755629377112,-2162.82,0.00024095,30]
[380259034,1755629377156,-1596.83,0.00024095,30]
[380259035,1755629377200,-2642.17,0.00024095,30]
[380259036,1755629377245,-684.78,0.00024095,30]
[380259037,1755629377291,-2673.45,0.00024095,30]
[380259038,1755629377334,-2984.26,0.00024095,30]
[380259039,1755629377377,-400.0,0.00024095,30]
[380259040,1755629377420,-400.0,0.00024095,30]
[380259041,1755629377461,-1272.67,0.00024095,30]
[380259042,1755629377501,-2588.67,0.00024095,30]
[380259043,1755629377546,-400.0,0.00024095,30]
[380259044,1755629377586,-891.88,0.00024095,30]
[380259045,1755629377626,-1020.39,0.00024095,30]
[380259046,1755629377667,-406.51,0.00024095,30]
[380259047,1755629377707,-400.0,0.00024095,30]
[380259048,1755629377746,-2900.8,0.00024095,30]
[380259049,1755629377789,-2142.09,0.00024095,30]
[380259050,1755629377829,-2305.52,0.00024095,30]
[380259051,1755629377868,-987.76,0.00024095,30]
[380259052,1755629377906,-400.0,0.00024095,30]
[380259053,1755629377944,-400.0,0.00024095,30]
[380259054,1755629377981,-2952.94,0.00024095,30]
[380259055,1755629378021,-940.46,0.00024095,30]
[380259056,1755629378060,-926.35,0.00024095,30]
[380259057,1755629378099,-1853.03,0.00024095,30]
[380259058,1755629378140,-1550.89,0.00024095,30]
[380259059,1755629378180,-496.38,0.00024095,30]
[380259060,1755629378221,-1745.83,0.00024095,30]
[380259061,1755629378268,-917.06,0.00024095,30]
[380259062,1755629378307,-799.24,0.00024095,30]
[380259063,1755629378347,-2393.4,0.00024095,30]
[380259064,1755629378391,-400.0,0.00024095,30]
[380259065,1755629378432,-1026.89,0.00024095,30]
[380259066,1755629378470,-1936.62,0.00024095,30]
[380259067,1755629378508,-399.07816252,0.00024095,30]
[380259068,1755629378548,-1371.64,0.00024095,30]
[380259069,1755629378589,-1054.77,0.00024095,30]
[380259070,1755629378631,-400.0,0.00024095,30]
[380259071,1755629378673,-751.43,0.00024095,30]
[380259072,1755629378714,-400.0,0.00024095,30]
[380259073,1755629378754,-693.91,0.00024095,30]
[380259074,1755629378792,-3204.43,0.00024095,30]
[380259075,1755629378832,-400.0,0.00024095,30]
[380259076,1755629378871,-1038.88,0.00024095,30]
[380259077,1755629378912,-979.8,0.00024095,30]
[380259078,1755629378951,-400.0,0.00024095,30]
[380259079,1755629378988,-3505.7,0.00024095,30]
[380259080,1755629379028,-400.0,0.00024095,30]
[380259081,1755629379071,-2071.3,0.00024095,30]
[380259082,1755629379114,-2353.75,0.00024095,30]
[380259083,1755629379154,-3635.54,0.00024095,30]
[380259084,1755629379196,-1426.25,0.00024095,30]
[380259085,1755629379240,-1050.38,0.00024095,30]
[380259086,1755629379295,-422.35,0.00024095,30]
[380259087,1755629379346,-582.29,0.00024095,30]
[380259088,1755629379403,-400.0,0.00024095,30]
[380259089,1755629379452,-400.0,0.00024095,30]
[380259090,1755629379685,-400.0,0.00024095,30]
[380259091,1755629379734,-2329.67,0.00024095,30]
[380259092,1755629379779,-2112.39,0.00024095,30]
[380259093,1755629379826,-400.0,0.00024095,30]
[380259094,1755629379869,-2426.46,0.00024095,30]
[380259095,1755629379913,-1405.4,0.00024095,30]
[380259096,1755629379961,-956.51,0.00024095,30]
[380259097,1755629380007,-2106.62,0.00024095,30]
[380259098,1755629380051,-400.0,0.00024095,30]
[380259099,1755629380096,-1463.05,0.00024095,30]
[380259100,1755629380139,-400.0,0.00024095,30]
[380259101,1755629380183,-2552.28,0.00024095,30]
[380259102,1755629380227,-400.0,0.00024095,30]
[380259103,1755629380275,-1252.69,0.00024095,30]
[380259104,1755629380318,-539.21,0.00024095,30]
[380259105,1755629380363,-3297.99,0.00024095,30]
[380259106,1755629380406,-469.47,0.00024095,30]
[380259107,1755629380445,-2211.33,0.00024095,30]
[380259108,1755629380483,-519.14,0.00024095,30]
[380259109,1755629380520,-400.0,0.00024095,30]
[380259110,1755629380556,-1011.83,0.00024095,30]
[380259111,1755629380595,-2229.95,0.00024095,30]
[380259112,1755629380632,-2168.38,0.00024095,30]
[380259113,1755629380669,-2039.77,0.00024095,30]
[380259114,1755629380705,-400.0,0.00024095,30]
[380259115,1755629380742,-1860.26,0.00024095,30]
[380259116,1755629380781,-400.0,0.00024095,30]
[380259117,1755629380817,-400.0,0.00024095,30]
[380259118,1755629380858,-1143.82,0.00024095,30]
[380259119,1755629380896,-1957.13,0.00024095,30]
[380259120,1755629380933,-750.34,0.00024095,30]
[380259121,1755629380972,-923.75,0.00024095,30]
[380259122,1755629381008,-1264.14,0.00024095,30]
[380259123,1755629381047,-1256.72,0.00024095,30]
[380259124,1755629381086,-400.0,0.00024095,30]
[380259125,1755629381123,-400.0,0.00024095,30]
[380259126,1755629381162,-3603.61,0.00024095,30]
[380259127,1755629381204,-628.22,0.00024095,30]
[380259128,1755629381246,-514.14,0.00024095,30]
[380259129,1755629381288,-4351.11,0.00024095,30]
[380259130,1755629381332,-400.0,0.00024095,30]
[380259131,1755629381373,-1048.78,0.00024095,30]
[380259132,1755629381417,-400.0,0.00024095,30]
[380259133,1755629381457,-2704.82,0.00024095,30]
[380259134,1755629381494,-1011.63,0.00024095,30]
[380259135,1755629381531,-400.0,0.00024095,30]
[380259136,1755629381567,-808.67,0.00024095,30]
[380259137,1755629381607,-410.03,0.00024095,30]
[380259138,1755629381644,-400.0,0.00024095,30]
[380259139,1755629381680,-536.81,0.00024095,30]
[380259140,1755629381717,-2326.39,0.00024095,30]
[380259141,1755629381754,-400.0,0.00024095,30]
[380259142,1755629381792,-400.0,0.00024095,30]
[380259143,1755629381829,-461.27,0.00024095,30]
[380259144,1755629381867,-400.0,0.00024095,30]
[380259145,1755629381904,-400.0,0.00024095,30]
[380259146,1755629381941,-1104.81,0.00024095,30]
[380259147,1755629381979,-422.25,0.00024095,30]
[380259148,1755629382017,-400.0,0.00024095,30]
[380259149,1755629382058,-2512.15,0.00024095,30]
[380259150,1755629382101,-442.37,0.00024095,30]
[380259151,1755629382141,-2928.41,0.00024095,30]
[380259152,1755629382180,-493.74,0.00024095,30]
[380259153,1755629382223,-400.0,0.00024095,30]
[380259154,1755629382270,-612.13,0.00024095,30]
[380259155,1755629382313,-400.0,0.00024095,30]
[380259156,1755629382363,-2278.77,0.00024095,30]
[380259157,1755629382406,-440.30272455,0.00024095,30]
[380259158,1755629382446,-400.0,0.00024095,30]
[380259159,1755629382484,-456.52,0.00024095,30]
[380259160,1755629382522,-2073.47,0.00024095,30]
[380259161,1755629382561,-1355.75,0.00024095,30]
[380259162,1755629382600,-400.0,0.00024095,30]
[380259163,1755629382639,-957.1,0.00024095,30]
[380259164,1755629382687,-3030.06,0.00024095,30]
[380259165,1755629382730,-400.0,0.00024095,30]
[380259166,1755629382771,-667.04,0.00024095,30]
[380259167,1755629382811,-2555.68,0.00024095,30]
[380259168,1755629382852,-2646.03,0.00024095,30]
[380259169,1755629382891,-400.0,0.00024095,30]
[380259170,1755629382929,-400.0,0.00024095,30]
[380259171,1755629382968,-10190.77,0.00024095,30]
[380259172,1755629383006,-2748.94,0.00024095,30]
[380259173,1755629383047,-400.0,0.00024095,30]
[380259174,1755629383088,-2420.0,0.00024095,30]
[380259175,1755629383132,-3279.12,0.00024095,30]
[380259176,1755629383174,-400.0,0.00024095,30]
[380259177,1755629383218,-1391.13,0.00024095,30]
[380259178,1755629383262,-667.04,0.00024095,30]
[380259179,1755629383307,-400.0,0.00024095,30]
[380259180,1755629383352,-400.0,0.00024095,30]
[380259181,1755629383397,-400.0,0.00024095,30]
[380259182,1755629383441,-1197.04,0.00024095,30]
[380259183,1755629383484,-739.42,0.00024095,30]
[380259184,1755629383526,-830.91,0.00024095,30]
[380259185,1755629383573,-513.07,0.00024095,30]
[380259186,1755629383615,-400.0,0.00024095,30]
[380259187,1755629383656,-3333.0,0.00024095,30]
[380259188,1755629383696,-400.0,0.00024095,30]
[380259189,1755629383739,-1904.09,0.00024095,30]
[380259190,1755629383780,-3855.5,0.00024095,30]
[380259191,1755629383824,-509.8,0.00024095,30]
[380259192,1755629383865,-400.0,0.00024095,30]
[380259193,1755629383905,-864.69,0.00024095,30]
[380259194,1755629383948,-2620.71,0.00024095,30]
[380259195,1755629383990,-1411.58,0.00024095,30]
[380259196,1755629384034,-400.0,0.00024095,30]
[380259197,1755629384078,-438.51,0.00024095,30]
[380259198,1755629384121,-3363.78,0.00024095,30]
[380259199,1755629384165,-400.0,0.00024095,30]
[380259200,1755629384209,-400.0,0.00024095,30]
[380259201,1755629384255,-400.0,0.00024095,30]
[380259202,1755629384300,-4110.64,0.00024095,30]
[380259203,1755629384345,-400.0,0.00024095,30]
[380259204,1755629384387,-400.0,0.00024095,30]
[380259205,1755629384431,-2479.07,0.00024095,30]
[380259206,1755629384476,-3456.6,0.00024095,30]
[380259207,1755629384758,-3050.97,0.00024095,30]
[380259208,1755629384804,-354.5789065,0.00024095,30]
[380259209,1755629384849,-1886.29,0.00024095,30]
[380259210,1755629384888,-565.49,0.00024095,30]
[380259211,1755629384929,-711.64,0.00024095,30]
[380259212,1755629384970,-2284.8,0.00024095,30]
[380259213,1755629385011,-1000.42,0.00024095,30]
[380259214,1755629385058,-400.0,0.00024095,30]
[380259215,1755629385105,-3431.32,0.00024095,30]
[380259216,1755629385150,-499.72,0.00024095,30]
[380259217,1755629385205,-491.72,0.00024095,30]
[380259218,1755629385256,-2658.88,0.00024095,30]
[380259219,1755629385302,-400.0,0.00024095,30]
[380259220,1755629385350,-400.0,0.00024095,30]
[380259221,1755629385395,-444.64,0.00024095,30]
[380259222,1755629385441,-3182.87,0.00024095,30]
[380259223,1755629385485,-545.6,0.00024095,30]
[380259224,1755629385530,-2221.92,0.00024095,30]
[380259225,1755629385575,-400.0,0.00024095,30]
[380259226,1755629385620,-400.0,0.00024095,30]
[380259227,1755629385668,-2690.35,0.00024095,30]
[380259228,1755629385713,-400.0,0.00024095,30]
[380259229,1755629385756,-435.01,0.00024095,30]
[380259230,1755629385797,-400.0,0.00024095,30]
[380259231,1755629385838,-2290.96,0.00024095,30]
[380259232,1755629385877,-400.0,0.00024095,30]
[380259233,1755629385916,-1727.0,0.00024095,30]
[380259234,1755629385955,-1178.6,0.00024095,30]
[380259235,1755629385994,-400.0,0.00024095,30]
[380259236,1755629386033,-1388.4,0.00024095,30]
[380259237,1755629386080,-400.0,0.00024095,30]
[380259238,1755629386122,-400.0,0.00024095,30]
[380259239,1755629386165,-2580.38,0.00024095,30]
[380259240,1755629386207,-400.0,0.00024095,30]
[380259241,1755629386251,-3089.3,0.00024095,30]
[380259242,1755629386293,-3674.78,0.00024095,30]
[380259243,1755629386338,-857.04,0.00024095,30]
[380259244,1755629386380,-1218.21,0.00024095,30]
[380259245,1755629386425,-2850.07,0.00024095,30]
[380259246,1755629386467,-400.0,0.00024095,30]
[380259247,1755629386507,-400.0,0.00024095,30]
[380259248,1755629386546,-483.4,0.00024095,30]
[380259249,1755629386585,-400.0,0.00024095,30]
[380259250,1755629386624,-624.64,0.00024095,30]
[380259251,1755629386664,-2380.95,0.00024095,30]
[380259252,1755629386706,-1171.22,0.00024095,30]
[380259253,1755629386746,-1283.75,0.00024095,30]
[380259254,1755629386786,-400.0,0.00024095,30]
[380259255,1755629386827,-2540.16,0.00024095,30]
[380259256,1755629386866,-590.9,0.00024095,30]
[380259257,1755629386912,-2519.94,0.00024095,30]
[380259258,1755629386951,-470.87,0.00024095,30]
[380259259,1755629386989,-2456.64,0.00024095,30]
[380259260,1755629387030,-925.83,0.00024095,30]
[380259261,1755629387071,-952.43,0.00024095,30]
[380259262,1755629387112,-904.73,0.00024095,30]
[380259263,1755629387152,-400.0,0.00024095,30]
[380259264,1755629387195,-2120.71,0.00024095,30]
[380259265,1755629387245,-485.02,0.00024095,30]
[380259266,1755629387295,-4032.61,0.00024095,30]
[380259267,1755629387344,-1942.19,0.00024095,30]
[380259268,1755629387391,-957.89,0.00024095,30]
[380259269,1755629387439,-1582.9,0.00024095,30]
[380259270,1755629387484,-954.81,0.00024095,30]
[380259271,1755629387525,-400.0,0.00024095,30]
[380259272,1755629387566,-1660.82,0.00024095,30]
[380259273,1755629387609,-400.0,0.00024095,30]
[380259274,1755629387649,-400.0,0.00024095,30]
[380259275,1755629387690,-1485.26,0.00024095,30]
[380259276,1755629387737,-1481.25,0.00024095,30]
[380259277,1755629387780,-400.0,0.00024095,30]
[380259278,1755629387823,-7829.02,0.00024095,30]
[380259279,1755629387865,-3080.38,0.00024095,30]
[380259280,1755629387906,-1106.61,0.00024095,30]
[380259281,1755629387946,-400.0,0.00024095,30]
[380259282,1755629387986,-400.0,0.00024095,30]
[380259283,1755629388026,-400.0,0.00024095,30]
[380259284,1755629388068,-2428.53,0.00024095,30]
[380259285,1755629388114,-1275.31,0.00024095,30]
[380259286,1755629388157,-2245.56,0.00024095,30]
[380259287,1755629388201,-400.0,0.00024095,30]
[380259288,1755629388247,-400.0,0.00024095,30]
[380259289,1755629388294,-400.0,0.00024095,30]
[380259290,1755629388343,-508.35,0.00024095,30]
[380259291,1755629388390,-1819.77,0.00024095,30]
[380259292,1755629388439,-400.0,0.00024095,30]
[380259293,1755629388481,-1393.08,0.00024095,30]
[380259294,1755629388523,-750.82,0.00024095,30]
[380259295,1755629388565,-400.0,0.00024095,30]
[380259296,1755629388608,-849.04,0.00024095,30]
[380259297,1755629388649,-2808.37,0.00024095,30]
[380259298,1755629388689,-1073.77,0.00024095,30]